[Event "*** SCC Grand Prix: Titled Tuesday Blitz"]
[Site "Chess.com"]
[Date "2020.07.14"]
[Round "4"]
[White "viditchess"]
[Black "KobyKalavannan"]
[Result "1-0"]
[WhiteElo "3008"]
[BlackElo "2747"]
[TimeControl "180+1"]
[EndTime "10:42:53 PDT"]
[Termination "viditchess won by resignation"]

1. d4 {[%clk 0:03:00.9]} 1... Nf6 {[%clk 0:02:59.8]} 2. c4 {[%clk 0:03:00.7]}
2... g6 {[%clk 0:03:00.2]} 3. Nc3 {[%clk 0:03:00]} 3... Bg7 {[%clk 0:03:00.5]}
4. g3 {[%clk 0:02:52.8]} 4... O-O {[%clk 0:02:59.7]} 5. Bg2 {[%clk 0:02:53.1]}
5... d6 {[%clk 0:03:00.1]} 6. Nf3 {[%clk 0:02:53.3]} 6... Nc6 {[%clk 0:03:00.2]}
7. O-O {[%clk 0:02:52.7]} 7... Bf5 {[%clk 0:03:00.3]} 8. d5 {[%clk 0:02:47.4]}
8... Na5 {[%clk 0:02:54.6]} 9. Nh4 {[%clk 0:02:37.6]} 9... Nxc4 {[%clk
0:02:27.6]} 10. Nxf5 {[%clk 0:02:36.7]} 10... gxf5 {[%clk 0:02:28.5]} 11. Qd3
{[%clk 0:02:36.3]} 11... Ne5 {[%clk 0:02:23.9]} 12. Qxf5 {[%clk 0:02:36.1]}
12... Qd7 {[%clk 0:02:24.1]} 13. Qc2 {[%clk 0:02:28.1]} 13... c5 {[%clk
0:02:20.6]} 14. dxc6 {[%clk 0:02:18.5]} 14... Nxc6 {[%clk 0:02:17.4]} 15. Rd1
{[%clk 0:02:17.4]} 15... Rac8 {[%clk 0:02:16.6]} 16. Bg5 {[%clk 0:02:15.1]}
16... Qg4 {[%clk 0:02:11]} 17. Qd2 {[%clk 0:02:10.3]} 17... Ne5 {[%clk
0:01:58.8]} 18. h3 {[%clk 0:02:06.3]} 18... Qd7 {[%clk 0:01:52.5]} 19. Bh6
{[%clk 0:01:54.2]} 19... Bxh6 {[%clk 0:01:38.2]} 20. Qxh6 {[%clk 0:01:55.1]}
20... Qf5 {[%clk 0:01:38.8]} 21. Rd4 {[%clk 0:01:48]} 21... Rc4 {[%clk 0:01:25]}
22. Rad1 {[%clk 0:01:40.4]} 22... Qg6 {[%clk 0:01:01.2]} 23. Qe3 {[%clk
0:01:34.6]} 23... Rc7 {[%clk 0:00:56.2]} 24. Nd5 {[%clk 0:01:08.7]} 24... Nxd5
{[%clk 0:00:56.3]} 25. Bxd5 {[%clk 0:01:09.3]} 25... Kh8 {[%clk 0:00:55.2]} 26.
Rh4 {[%clk 0:01:04.1]} 26... Qf6 {[%clk 0:00:44.7]} 27. Be4 {[%clk 0:00:28.4]}
27... Ng6 {[%clk 0:00:42.4]} 28. Bxg6 {[%clk 0:00:28.6]} 28... fxg6 {[%clk
0:00:42.9]} 29. Rf4 {[%clk 0:00:27.6]} 29... Qg7 {[%clk 0:00:40.4]} 30. Rxf8+
{[%clk 0:00:27.8]} 30... Qxf8 {[%clk 0:00:41.3]} 31. Qxa7 {[%clk 0:00:27.9]}
31... Rc2 {[%clk 0:00:36.5]} 32. Qb6 {[%clk 0:00:16.7]} 32... Rxe2 {[%clk
0:00:34.4]} 33. Rf1 {[%clk 0:00:16.5]} 33... Qf6 {[%clk 0:00:31.6]} 34. b4
{[%clk 0:00:13.2]} 34... Rxa2 {[%clk 0:00:28.6]} 35. Qxb7 {[%clk 0:00:13.6]}
35... Kg7 {[%clk 0:00:24]} 36. b5 {[%clk 0:00:14]} 36... Rb2 {[%clk 0:00:24]}
37. b6 {[%clk 0:00:14]} 37... Qd4 {[%clk 0:00:22.3]} 38. Qxe7+ {[%clk
0:00:14.1]} 38... Kg8 {[%clk 0:00:19.6]} 39. b7 {[%clk 0:00:13.5]} 39... Qb6
{[%clk 0:00:18.8]} 40. Qe8+ {[%clk 0:00:07.7]} 40... Kg7 {[%clk 0:00:19.1]} 41.
Qe7+ {[%clk 0:00:07.8]} 41... Kg8 {[%clk 0:00:19.4]} 42. Qe6+ {[%clk 0:00:08.1]}
42... Kg7 {[%clk 0:00:19.6]} 43. Qd7+ {[%clk 0:00:07.4]} 43... Kg8 {[%clk
0:00:19.7]} 44. Qc8+ {[%clk 0:00:08]} 44... Kg7 {[%clk 0:00:19.8]} 45. Qc3+
{[%clk 0:00:08.2]} 45... Kg8 {[%clk 0:00:19.1]} 46. Qf6 {[%clk 0:00:07.8]} 46...
Qxb7 {[%clk 0:00:17]} 47. Qxd6 {[%clk 0:00:07.1]} 47... Rb1 {[%clk 0:00:15]} 48.
Qd8+ {[%clk 0:00:07.4]} 48... Kg7 {[%clk 0:00:15]} 49. Qd4+ {[%clk 0:00:06.8]}
49... Kg8 {[%clk 0:00:14.8]} 50. Qc4+ {[%clk 0:00:05.8]} 50... Kg7 {[%clk
0:00:15.1]} 51. Qc3+ {[%clk 0:00:06.2]} 51... Kg8 {[%clk 0:00:15.3]} 52. Rxb1
{[%clk 0:00:05.7]} 52... Qxb1+ {[%clk 0:00:16.2]} 53. Kg2 {[%clk 0:00:06.4]}
53... Qe4+ {[%clk 0:00:16.4]} 54. Qf3 {[%clk 0:00:06.7]} 54... Qe6 {[%clk
0:00:16.9]} 55. Qf4 {[%clk 0:00:05.3]} 55... Kg7 {[%clk 0:00:15.8]} 56. Qd4+
{[%clk 0:00:05.3]} 56... Kg8 {[%clk 0:00:15.9]} 57. Qe3 {[%clk 0:00:05.2]} 57...
Qd5+ {[%clk 0:00:16.1]} 58. Kh2 {[%clk 0:00:05.7]} 58... Kg7 {[%clk 0:00:15.6]}
59. g4 {[%clk 0:00:06.2]} 59... Qd6+ {[%clk 0:00:15.4]} 60. f4 {[%clk
0:00:06.1]} 60... Qb4 {[%clk 0:00:14.7]} 61. Kg3 {[%clk 0:00:06.2]} 61... Qb1
{[%clk 0:00:13.8]} 62. Qe7+ {[%clk 0:00:06.4]} 62... Kg8 {[%clk 0:00:13.8]} 63.
Qd8+ {[%clk 0:00:06.6]} 63... Kg7 {[%clk 0:00:13.8]} 64. Qd4+ {[%clk 0:00:06.8]}
64... Kg8 {[%clk 0:00:14.3]} 65. Qd5+ {[%clk 0:00:06.9]} 65... Kg7 {[%clk
0:00:14.6]} 66. Qe5+ {[%clk 0:00:07.4]} 66... Kg8 {[%clk 0:00:15]} 67. Qe3
{[%clk 0:00:08]} 67... Qc2 {[%clk 0:00:13.7]} 68. f5 {[%clk 0:00:08]} 68... gxf5
{[%clk 0:00:13.8]} 69. Qg5+ {[%clk 0:00:07.8]} 69... Kh8 {[%clk 0:00:08.4]} 70.
Qf6+ {[%clk 0:00:07.8]} 70... Kg8 {[%clk 0:00:08.7]} 71. Qe6+ {[%clk 0:00:08.2]}
71... Kh8 {[%clk 0:00:08.5]} 72. Qe5+ {[%clk 0:00:08.6]} 72... Kg8 {[%clk
0:00:08.9]} 73. Qd5+ {[%clk 0:00:09.1]} 73... Kh8 {[%clk 0:00:08.9]} 74. Qd4+
{[%clk 0:00:07.5]} 74... Kg8 {[%clk 0:00:08.9]} 75. Qd5+ {[%clk 0:00:08.1]}
75... Kh8 {[%clk 0:00:09.2]} 76. Qxf5 {[%clk 0:00:08.8]} 76... Qc3+ {[%clk
0:00:09.7]} 77. Kh4 {[%clk 0:00:09.1]} 77... Qe1+ {[%clk 0:00:09.5]} 78. Kh5
{[%clk 0:00:09.3]} 78... Qe8+ {[%clk 0:00:09.7]} 79. Kg5 {[%clk 0:00:08.7]}
79... Qe3+ {[%clk 0:00:09.8]} 80. Kh4 {[%clk 0:00:07.4]} 80... Qe1+ {[%clk
0:00:09.4]} 81. Kh5 {[%clk 0:00:07.7]} 81... Qe8+ {[%clk 0:00:09.6]} 82. Kg5
{[%clk 0:00:05.8]} 82... Qe3+ {[%clk 0:00:09.8]} 83. Qf4 {[%clk 0:00:06.1]}
83... Qe7+ {[%clk 0:00:08.7]} 84. Qf6+ {[%clk 0:00:05.8]} 84... Qg7+ {[%clk
0:00:09.2]} 85. Kf5 {[%clk 0:00:04.9]} 85... Kg8 {[%clk 0:00:08.1]} 86. Qxg7+
{[%clk 0:00:03.8]} 86... Kxg7 {[%clk 0:00:09]} 87. Kg5 {[%clk 0:00:03.1]} 87...
h6+ {[%clk 0:00:08.1]} 88. Kf5 {[%clk 0:00:03.7]} 88... Kf7 {[%clk 0:00:08]} 89.
h4 {[%clk 0:00:03.4]} 89... Kg7 {[%clk 0:00:07.8]} 90. Ke5 {[%clk 0:00:03]}
90... Kg6 {[%clk 0:00:06.2]} 91. Ke6 {[%clk 0:00:03.5]} 91... Kg7 {[%clk
0:00:02.9]} 92. h5 {[%clk 0:00:03.9]} 92... Kg8 {[%clk 0:00:02.3]} 93. Kf6
{[%clk 0:00:04]} 93... Kh7 {[%clk 0:00:02.4]} 94. Kf7 {[%clk 0:00:04.7]} 94...
Kh8 {[%clk 0:00:01.9]} 95. Kg6 {[%clk 0:00:05.5]} 95... Kg8 {[%clk 0:00:02.5]}
96. Kxh6 {[%clk 0:00:06.2]} 96... Kh8 {[%clk 0:00:03.2]} 97. Kg6 {[%clk
0:00:06.5]} 97... Kg8 {[%clk 0:00:03.2]} 98. Kg5 {[%clk 0:00:06.1]} 98... Kg7
{[%clk 0:00:03.5]} 99. Kh4 {[%clk 0:00:06.7]} 99... Kh6 {[%clk 0:00:04.1]} 100.
g5+ {[%clk 0:00:07.4]} 100... Kh7 {[%clk 0:00:04.7]} 101. Kg4 {[%clk 0:00:08.1]}
101... Kg7 {[%clk 0:00:05.2]} 102. Kf5 {[%clk 0:00:08.8]} 102... Kf7 {[%clk
0:00:05.7]} 103. h6 {[%clk 0:00:09.1]} 103... Kg8 {[%clk 0:00:06.2]} 104. g6
{[%clk 0:00:09.6]} 104... Kh8 {[%clk 0:00:06.3]} 105. Kf6 {[%clk 0:00:09.7]}
105... Kg8 {[%clk 0:00:06.8]} 106. h7+ {[%clk 0:00:10.3]} 106... Kh8 {[%clk
0:00:07.5]} 107. g7+ {[%clk 0:00:10.9]} 1-0

[Event "*** SCC Grand Prix: Titled Tuesday Blitz"]
[Site "Chess.com"]
[Date "2020.07.14"]
[Round "5"]
[White "ChessFunMaker"]
[Black "DrVitman"]
[Result "1-0"]
[WhiteElo "2274"]
[BlackElo "2485"]
[TimeControl "180+1"]
[EndTime "10:50:45 PDT"]
[Termination "ChessFunMaker won by resignation"]

1. c4 {[%clk 0:03:00.9]} 1... c5 {[%clk 0:02:52.2]} 2. g3 {[%clk 0:03:00.1]}
2... Nc6 {[%clk 0:02:50.5]} 3. Bg2 {[%clk 0:03:00.3]} 3... d6 {[%clk 0:02:50.7]}
4. Nc3 {[%clk 0:03:00.9]} 4... g6 {[%clk 0:02:50.8]} 5. Nf3 {[%clk 0:03:01.3]}
5... Bg7 {[%clk 0:02:51.3]} 6. O-O {[%clk 0:03:01.6]} 6... e5 {[%clk 0:02:51.8]}
7. a3 {[%clk 0:03:01.5]} 7... Nge7 {[%clk 0:02:52.2]} 8. b4 {[%clk 0:03:02.1]}
8... cxb4 {[%clk 0:02:46.2]} 9. axb4 {[%clk 0:03:03]} 9... Nxb4 {[%clk
0:02:43.5]} 10. Ba3 {[%clk 0:03:03.4]} 10... Nbc6 {[%clk 0:02:41.5]} 11. Ne4
{[%clk 0:02:52.5]} 11... d5 {[%clk 0:02:26.4]} 12. Nd6+ {[%clk 0:02:48.7]} 12...
Kf8 {[%clk 0:02:23.3]} 13. cxd5 {[%clk 0:02:47.6]} 13... Nxd5 {[%clk 0:02:21.4]}
14. Nxb7+ {[%clk 0:02:41.8]} 1-0

[Event "*** SCC Grand Prix: Titled Tuesday Blitz"]
[Site "Chess.com"]
[Date "2020.07.14"]
[Round "5"]
[White "Jabberwockiez"]
[Black "Tashik"]
[Result "1-0"]
[WhiteElo "2302"]
[BlackElo "2401"]
[TimeControl "180+1"]
[EndTime "10:51:54 PDT"]
[Termination "Jabberwockiez won by resignation"]

1. e4 {[%clk 0:03:00.9]} 1... Nf6 {[%clk 0:03:00.1]} 2. e5 {[%clk 0:03:00.6]}
2... Nd5 {[%clk 0:03:00.2]} 3. d4 {[%clk 0:03:01.3]} 3... d6 {[%clk 0:03:00.6]}
4. c4 {[%clk 0:03:02]} 4... Nb6 {[%clk 0:03:00.2]} 5. exd6 {[%clk 0:03:02.5]}
5... cxd6 {[%clk 0:03:01.1]} 6. Nc3 {[%clk 0:03:03]} 6... g6 {[%clk 0:03:01.6]}
7. Be3 {[%clk 0:03:03.7]} 7... Bg7 {[%clk 0:03:02]} 8. Rc1 {[%clk 0:03:04.4]}
8... O-O {[%clk 0:03:02.1]} 9. b3 {[%clk 0:03:04.9]} 9... Nc6 {[%clk 0:02:52.5]}
10. d5 {[%clk 0:02:59.7]} 10... Ne5 {[%clk 0:02:51.9]} 11. Be2 {[%clk
0:02:59.5]} 11... f5 {[%clk 0:02:41.2]} 12. f4 {[%clk 0:02:38.6]} 12... Ng4
{[%clk 0:02:35.1]} 13. Bd4 {[%clk 0:02:37.7]} 13... e5 {[%clk 0:02:21.8]} 14.
dxe6 {[%clk 0:02:27.4]} 14... Bxe6 {[%clk 0:01:48.6]} 15. Bxg7 {[%clk
0:02:24.8]} 15... Kxg7 {[%clk 0:01:48.3]} 16. Nf3 {[%clk 0:02:23.7]} 16... Ne3
{[%clk 0:01:40.7]} 17. Qd4+ {[%clk 0:02:22.2]} 1-0

[Event "*** SCC Grand Prix: Titled Tuesday Blitz"]
[Site "Chess.com"]
[Date "2020.07.14"]
[Round "5"]
[White "RusPakhom"]
[Black "SARGISMV"]
[Result "0-1"]
[WhiteElo "2278"]
[BlackElo "2484"]
[TimeControl "180+1"]
[EndTime "10:51:59 PDT"]
[Termination "SARGISMV won by resignation"]

1. e4 {[%clk 0:03:00.4]} 1... e6 {[%clk 0:02:51.1]} 2. d4 {[%clk 0:02:57]} 2...
d5 {[%clk 0:02:48.3]} 3. Nd2 {[%clk 0:02:57.5]} 3... Nc6 {[%clk 0:02:47.9]} 4.
c3 {[%clk 0:02:47]} 4... e5 {[%clk 0:02:47.6]} 5. exd5 {[%clk 0:02:42.7]} 5...
Qxd5 {[%clk 0:02:48.5]} 6. Bc4 {[%clk 0:02:34]} 6... Qxg2 {[%clk 0:02:47.7]} 7.
Qf3 {[%clk 0:02:30.2]} 7... Qxf3 {[%clk 0:02:47]} 8. Ngxf3 {[%clk 0:02:31.1]}
8... exd4 {[%clk 0:02:47.7]} 9. cxd4 {[%clk 0:02:30.9]} 9... Be7 {[%clk
0:02:42.3]} 10. Ne4 {[%clk 0:02:30]} 10... Nf6 {[%clk 0:02:39.1]} 11. Ng3 {[%clk
0:02:18.3]} 11... O-O {[%clk 0:02:28.5]} 12. Bf4 {[%clk 0:02:18.4]} 12... Bg4
{[%clk 0:02:25.5]} 13. Ne5 {[%clk 0:01:49.5]} 13... Nxd4 {[%clk 0:02:22.5]} 14.
O-O {[%clk 0:01:49.9]} 14... Bd6 {[%clk 0:02:14.4]} 15. Rad1 {[%clk 0:01:42.3]}
15... Bxe5 {[%clk 0:02:12.5]} 0-1

[Event "*** SCC Grand Prix: Titled Tuesday Blitz"]
[Site "Chess.com"]
[Date "2020.07.14"]
[Round "5"]
[White "Borsuk_Konstantin"]
[Black "Igor_Lysyj"]
[Result "0-1"]
[WhiteElo "2564"]
[BlackElo "2803"]
[TimeControl "180+1"]
[EndTime "10:52:15 PDT"]
[Termination "Igor_Lysyj won by resignation"]

1. d4 {[%clk 0:03:00.9]} 1... d5 {[%clk 0:02:56.9]} 2. c4 {[%clk 0:03:00.7]}
2... e6 {[%clk 0:02:55.3]} 3. Nc3 {[%clk 0:03:00.6]} 3... dxc4 {[%clk
0:02:54.6]} 4. Nf3 {[%clk 0:02:57.1]} 4... a6 {[%clk 0:02:54.1]} 5. e3 {[%clk
0:02:43.8]} 5... b5 {[%clk 0:02:51.6]} 6. a4 {[%clk 0:02:43.1]} 6... b4 {[%clk
0:02:51.3]} 7. Ne4 {[%clk 0:02:42.7]} 7... Bb7 {[%clk 0:02:50.3]} 8. Ng3 {[%clk
0:02:39.2]} 8... c5 {[%clk 0:02:45.4]} 9. Bxc4 {[%clk 0:02:32.3]} 9... cxd4
{[%clk 0:02:45.3]} 10. exd4 {[%clk 0:02:26.9]} 10... Nf6 {[%clk 0:02:44.7]} 11.
O-O {[%clk 0:02:18.6]} 11... Be7 {[%clk 0:02:44.1]} 12. Be3 {[%clk 0:02:07.4]}
12... O-O {[%clk 0:02:43.8]} 13. Rc1 {[%clk 0:02:06.7]} 13... Nc6 {[%clk
0:02:41.1]} 14. Ne5 {[%clk 0:02:05.5]} 14... Nd5 {[%clk 0:02:31.3]} 15. Nxc6
{[%clk 0:01:02.2]} 15... Bxc6 {[%clk 0:02:30.5]} 16. Bxa6 {[%clk 0:01:02.5]}
16... Rxa6 {[%clk 0:02:29.3]} 0-1

[Event "*** SCC Grand Prix: Titled Tuesday Blitz"]
[Site "Chess.com"]
[Date "2020.07.14"]
[Round "5"]
[White "MVM2008"]
[Black "MergenKakabaev"]
[Result "0-1"]
[WhiteElo "2231"]
[BlackElo "2425"]
[TimeControl "180+1"]
[EndTime "10:52:16 PDT"]
[Termination "MergenKakabaev won by resignation"]

1. e4 {[%clk 0:02:55.8]} 1... e5 {[%clk 0:02:59.4]} 2. Nf3 {[%clk 0:02:53.8]}
2... Nc6 {[%clk 0:02:59.4]} 3. Bb5 {[%clk 0:02:51.7]} 3... a6 {[%clk 0:02:58.4]}
4. Ba4 {[%clk 0:02:51.1]} 4... Nf6 {[%clk 0:02:56.9]} 5. O-O {[%clk 0:02:50.1]}
5... Be7 {[%clk 0:02:56]} 6. Re1 {[%clk 0:02:49.1]} 6... b5 {[%clk 0:02:54.4]}
7. Bb3 {[%clk 0:02:48.6]} 7... d6 {[%clk 0:02:53.6]} 8. c3 {[%clk 0:02:47]} 8...
O-O {[%clk 0:02:51.5]} 9. h3 {[%clk 0:02:46]} 9... Na5 {[%clk 0:02:48.8]} 10.
Bc2 {[%clk 0:02:44.4]} 10... c5 {[%clk 0:02:49.4]} 11. d4 {[%clk 0:02:44]} 11...
Qc7 {[%clk 0:02:48.4]} 12. Nbd2 {[%clk 0:02:40]} 12... cxd4 {[%clk 0:02:46.4]}
13. cxd4 {[%clk 0:02:39.7]} 13... Nc6 {[%clk 0:02:45.1]} 14. d5 {[%clk
0:02:36.8]} 14... Nb4 {[%clk 0:02:42.4]} 15. Bb1 {[%clk 0:02:29.1]} 15... a5
{[%clk 0:02:42.1]} 16. Nf1 {[%clk 0:02:17]} 16... Bd7 {[%clk 0:02:35.9]} 17. g4
{[%clk 0:02:01.2]} 17... Rfc8 {[%clk 0:02:33.8]} 18. a3 {[%clk 0:01:26.5]} 18...
Nc2 {[%clk 0:02:31.6]} 19. Ra2 {[%clk 0:01:23.9]} 19... Nxe1 {[%clk 0:02:30.7]}
0-1

[Event "*** SCC Grand Prix: Titled Tuesday Blitz"]
[Site "Chess.com"]
[Date "2020.07.14"]
[Round "5"]
[White "BJthechessgod"]
[Black "WonderChampion"]
[Result "1-0"]
[WhiteElo "2296"]
[BlackElo "2011"]
[TimeControl "180+1"]
[EndTime "10:52:51 PDT"]
[Termination "BJthechessgod won by resignation"]

1. e4 {[%clk 0:03:00.3]} 1... c5 {[%clk 0:02:59.4]} 2. Nf3 {[%clk 0:02:59.7]}
2... g6 {[%clk 0:02:58.5]} 3. d4 {[%clk 0:02:59.5]} 3... cxd4 {[%clk 0:02:58.7]}
4. Nxd4 {[%clk 0:03:00.4]} 4... Nc6 {[%clk 0:02:58]} 5. Nc3 {[%clk 0:03:00.7]}
5... Bg7 {[%clk 0:02:57.1]} 6. Be3 {[%clk 0:03:01.3]} 6... Nf6 {[%clk
0:02:54.9]} 7. Bc4 {[%clk 0:03:01.5]} 7... O-O {[%clk 0:02:54.2]} 8. Bb3 {[%clk
0:03:00.6]} 8... d6 {[%clk 0:02:50.6]} 9. f3 {[%clk 0:03:01]} 9... Bd7 {[%clk
0:02:44.8]} 10. Qd2 {[%clk 0:03:01.4]} 10... Bh8 {[%clk 0:02:42.4]} 11. O-O-O
{[%clk 0:02:59.7]} 11... a6 {[%clk 0:02:40.6]} 12. g4 {[%clk 0:02:58.6]} 12...
Nxd4 {[%clk 0:02:35.7]} 13. Bxd4 {[%clk 0:02:58.4]} 13... b5 {[%clk 0:02:35.8]}
14. h4 {[%clk 0:02:58.5]} 14... b4 {[%clk 0:02:31.2]} 15. Nd5 {[%clk 0:02:54.9]}
15... a5 {[%clk 0:02:26.2]} 16. h5 {[%clk 0:02:52.8]} 16... a4 {[%clk
0:02:21.4]} 17. Nxf6+ {[%clk 0:02:52.1]} 17... Bxf6 {[%clk 0:02:06.3]} 18. Bd5
{[%clk 0:02:49.4]} 18... Rb8 {[%clk 0:01:42.4]} 19. Bxf6 {[%clk 0:02:47.1]}
19... exf6 {[%clk 0:01:40.4]} 20. hxg6 {[%clk 0:02:46.5]} 20... Be6 {[%clk
0:01:20.6]} 21. Qh6 {[%clk 0:02:36.1]} 21... Re8 {[%clk 0:01:13.1]} 22. g7
{[%clk 0:02:35.5]} 1-0

[Event "*** SCC Grand Prix: Titled Tuesday Blitz"]
[Site "Chess.com"]
[Date "2020.07.14"]
[Round "5"]
[White "Mikhal867"]
[Black "bgfbfbgfbgfgf"]
[Result "0-1"]
[WhiteElo "2399"]
[BlackElo "2669"]
[TimeControl "180+1"]
[EndTime "10:52:58 PDT"]
[Termination "bgfbfbgfbgfgf won by checkmate"]

1. c4 {[%clk 0:03:00.9]} 1... Nf6 {[%clk 0:02:58.6]} 2. Nc3 {[%clk 0:03:00.2]}
2... g6 {[%clk 0:02:55.8]} 3. e4 {[%clk 0:02:59.2]} 3... d6 {[%clk 0:02:55.9]}
4. d4 {[%clk 0:02:59.1]} 4... Bg7 {[%clk 0:02:55.1]} 5. f3 {[%clk 0:02:59.5]}
5... O-O {[%clk 0:02:54]} 6. Be3 {[%clk 0:02:58.5]} 6... b6 {[%clk 0:02:54]} 7.
Qd2 {[%clk 0:02:55.9]} 7... c5 {[%clk 0:02:53.9]} 8. Nge2 {[%clk 0:02:54.6]}
8... e6 {[%clk 0:02:50.6]} 9. O-O-O {[%clk 0:02:53]} 9... Nc6 {[%clk 0:02:43.2]}
10. d5 {[%clk 0:02:47.6]} 10... Ne5 {[%clk 0:02:43.3]} 11. Ng3 {[%clk
0:02:39.4]} 11... Ba6 {[%clk 0:02:43.3]} 12. b3 {[%clk 0:02:33.2]} 12... exd5
{[%clk 0:02:43.6]} 13. Nxd5 {[%clk 0:02:26.8]} 13... Nxd5 {[%clk 0:02:38.9]} 14.
Qxd5 {[%clk 0:02:21]} 14... Qf6 {[%clk 0:02:37.7]} 15. Qxd6 {[%clk 0:02:20.6]}
15... Nd3+ {[%clk 0:01:53.2]} 16. Rxd3 {[%clk 0:02:18.8]} 16... Qa1+ {[%clk
0:01:42.1]} 17. Kd2 {[%clk 0:02:11.1]} 17... Rad8 {[%clk 0:01:02.9]} 18. Qxd8
{[%clk 0:02:04.9]} 18... Bc3+ {[%clk 0:01:01.1]} 19. Ke2 {[%clk 0:01:57.4]}
19... Qe1# {[%clk 0:01:00.7]} 0-1

[Event "*** SCC Grand Prix: Titled Tuesday Blitz"]
[Site "Chess.com"]
[Date "2020.07.14"]
[Round "5"]
[White "Flawless_Fighter"]
[Black "Irishchessman16"]
[Result "1-0"]
[WhiteElo "2569"]
[BlackElo "2385"]
[TimeControl "180+1"]
[EndTime "10:53:02 PDT"]
[Termination "Flawless_Fighter won by resignation"]

1. e4 {[%clk 0:03:00.9]} 1... c5 {[%clk 0:02:59.4]} 2. Nf3 {[%clk 0:03:01.3]}
2... Nc6 {[%clk 0:02:59]} 3. Bb5 {[%clk 0:03:01.8]} 3... e6 {[%clk 0:02:56.8]}
4. Bxc6 {[%clk 0:03:00.8]} 4... bxc6 {[%clk 0:02:56.4]} 5. d3 {[%clk 0:03:00.9]}
5... Ne7 {[%clk 0:02:55]} 6. h4 {[%clk 0:03:01.5]} 6... d6 {[%clk 0:02:52.4]} 7.
e5 {[%clk 0:03:00.7]} 7... Ng6 {[%clk 0:02:51.4]} 8. Qe2 {[%clk 0:02:58]} 8...
dxe5 {[%clk 0:02:41.3]} 9. h5 {[%clk 0:02:53.7]} 9... Nf4 {[%clk 0:02:40.3]} 10.
Qxe5 {[%clk 0:02:48]} 10... Nd5 {[%clk 0:02:23]} 11. h6 {[%clk 0:02:43.6]} 11...
f6 {[%clk 0:02:21.3]} 12. Qe4 {[%clk 0:02:37.6]} 12... g6 {[%clk 0:02:15.7]} 13.
b3 {[%clk 0:02:30.2]} 13... e5 {[%clk 0:02:15]} 14. Na3 {[%clk 0:02:03.6]} 14...
Qa5+ {[%clk 0:02:01.3]} 15. Kf1 {[%clk 0:01:58.7]} 15... Qc3 {[%clk 0:01:52.1]}
16. Rb1 {[%clk 0:01:58.2]} 16... Bf5 {[%clk 0:01:51.9]} 17. Qa4 {[%clk
0:01:44.2]} 17... Nb4 {[%clk 0:01:28.8]} 18. Bd2 {[%clk 0:01:32.1]} 18... Bxd3+
{[%clk 0:01:28.6]} 19. Kg1 {[%clk 0:01:31.6]} 1-0

[Event "*** SCC Grand Prix: Titled Tuesday Blitz"]
[Site "Chess.com"]
[Date "2020.07.14"]
[Round "5"]
[White "Doraemon7"]
[Black "GeorgMeier"]
[Result "0-1"]
[WhiteElo "2638"]
[BlackElo "2956"]
[TimeControl "180+1"]
[EndTime "10:53:11 PDT"]
[Termination "GeorgMeier won by resignation"]

1. d4 {[%clk 0:02:21.7]} 1... e6 {[%clk 0:02:57.5]} 2. c4 {[%clk 0:02:21.5]}
2... b6 {[%clk 0:02:57]} 3. Nf3 {[%clk 0:02:21.1]} 3... Bb7 {[%clk 0:02:57.2]}
4. g3 {[%clk 0:02:21.8]} 4... Bb4+ {[%clk 0:02:57.8]} 5. Bd2 {[%clk 0:02:21.2]}
5... Bxf3 {[%clk 0:02:58.2]} 6. exf3 {[%clk 0:02:21.4]} 6... Bxd2+ {[%clk
0:02:59.1]} 7. Qxd2 {[%clk 0:02:22.2]} 7... Nf6 {[%clk 0:02:59.7]} 8. Nc3 {[%clk
0:02:22.6]} 8... d5 {[%clk 0:03:00.2]} 9. Bg2 {[%clk 0:02:18.6]} 9... dxc4
{[%clk 0:02:58]} 10. f4 {[%clk 0:02:11]} 10... c6 {[%clk 0:02:57.9]} 11. Rd1
{[%clk 0:02:00.5]} 11... a6 {[%clk 0:02:55.2]} 12. a4 {[%clk 0:01:57.9]} 12...
Ra7 {[%clk 0:02:55.3]} 13. O-O {[%clk 0:01:51.6]} 13... O-O {[%clk 0:02:55]} 14.
Rfe1 {[%clk 0:01:01.9]} 14... b5 {[%clk 0:02:47]} 15. f5 {[%clk 0:00:54.4]}
15... exf5 {[%clk 0:02:46]} 16. Qf4 {[%clk 0:00:52.6]} 16... Rd7 {[%clk
0:02:39.6]} 17. d5 {[%clk 0:00:26.9]} 17... cxd5 {[%clk 0:02:38.5]} 18. axb5
{[%clk 0:00:26.7]} 18... g6 {[%clk 0:02:34.5]} 19. bxa6 {[%clk 0:00:23.8]} 19...
Nxa6 {[%clk 0:02:35.4]} 20. Qd4 {[%clk 0:00:22.4]} 20... Nb4 {[%clk 0:02:33.6]}
21. b3 {[%clk 0:00:13.6]} 21... Nc2 {[%clk 0:02:33.4]} 0-1

[Event "*** SCC Grand Prix: Titled Tuesday Blitz"]
[Site "Chess.com"]
[Date "2020.07.14"]
[Round "5"]
[White "Nafania1"]
[Black "c_r_e_e_p_e_r"]
[Result "1-0"]
[WhiteElo "2435"]
[BlackElo "2299"]
[TimeControl "180+1"]
[EndTime "10:53:19 PDT"]
[Termination "Nafania1 won by resignation"]

1. e4 {[%clk 0:03:00.9]} 1... c5 {[%clk 0:02:59.5]} 2. Nf3 {[%clk 0:03:00]} 2...
d6 {[%clk 0:02:58.8]} 3. Bb5+ {[%clk 0:02:59.7]} 3... Nd7 {[%clk 0:02:58.4]} 4.
c3 {[%clk 0:02:59.5]} 4... Nf6 {[%clk 0:02:58.3]} 5. Bd3 {[%clk 0:02:59.4]} 5...
e6 {[%clk 0:02:46.9]} 6. Bc2 {[%clk 0:02:58.4]} 6... Be7 {[%clk 0:02:47]} 7. d4
{[%clk 0:02:58.3]} 7... cxd4 {[%clk 0:02:47.9]} 8. cxd4 {[%clk 0:02:58.2]} 8...
O-O {[%clk 0:02:47.1]} 9. Nc3 {[%clk 0:02:58.3]} 9... b6 {[%clk 0:02:33.1]} 10.
O-O {[%clk 0:02:56.5]} 10... Bb7 {[%clk 0:02:33.1]} 11. Re1 {[%clk 0:02:55.6]}
11... Rc8 {[%clk 0:02:33.3]} 12. Bf4 {[%clk 0:02:44.2]} 12... Re8 {[%clk
0:02:23.7]} 13. h3 {[%clk 0:02:37.1]} 13... Bf8 {[%clk 0:02:23.7]} 14. e5 {[%clk
0:02:35.1]} 14... Nd5 {[%clk 0:01:35.5]} 15. Bxh7+ {[%clk 0:02:24.6]} 15... Kxh7
{[%clk 0:01:32.1]} 16. Ng5+ {[%clk 0:02:24]} 16... Kg8 {[%clk 0:01:32.3]} 17.
Qh5 {[%clk 0:02:17.1]} 17... N5f6 {[%clk 0:01:29.3]} 18. exf6 {[%clk 0:02:12]}
18... Nxf6 {[%clk 0:01:30.2]} 19. Qxf7+ {[%clk 0:02:11.2]} 19... Kh8 {[%clk
0:01:30.6]} 20. Qxb7 {[%clk 0:02:10.8]} 20... Rc7 {[%clk 0:00:57.2]} 21. Nf7+
{[%clk 0:02:08.8]} 21... Rxf7 {[%clk 0:00:53.5]} 22. Qxf7 {[%clk 0:02:08.2]}
22... Re7 {[%clk 0:00:50.9]} 23. Qg6 {[%clk 0:02:07.5]} 23... Kg8 {[%clk
0:00:43.7]} 24. Bg5 {[%clk 0:02:07.2]} 1-0